[Event "*** Titled Tuesday Blitz"]
[Site "Chess.com"]
[Date "2020.10.20"]
[Round "6"]
[White "ajgreen"]
[Black "kai_nov"]
[Result "0-1"]
[WhiteElo "2387"]
[BlackElo "2276"]
[TimeControl "180+1"]
[EndTime "11:08:37 PDT"]
[Termination "kai_nov won by resignation"]

1. e4 {[%clk 0:03:00.1]} 1... c5 {[%clk 0:02:57.6]} 2. Nf3 {[%clk 0:03:01]} 2...
Nc6 {[%clk 0:02:57.2]} 3. d4 {[%clk 0:03:01.6]} 3... cxd4 {[%clk 0:02:57.2]} 4.
Nxd4 {[%clk 0:03:02.5]} 4... Nf6 {[%clk 0:02:57.3]} 5. Nc3 {[%clk 0:03:03.1]}
5... e5 {[%clk 0:02:57.5]} 6. Ndb5 {[%clk 0:03:03.2]} 6... d6 {[%clk 0:02:57.2]}
7. Bg5 {[%clk 0:03:03.2]} 7... a6 {[%clk 0:02:56.3]} 8. Na3 {[%clk 0:03:03.8]}
8... b5 {[%clk 0:02:55.6]} 9. Nd5 {[%clk 0:03:04.4]} 9... Be7 {[%clk 0:02:53.9]}
10. Bxf6 {[%clk 0:03:04.8]} 10... Bxf6 {[%clk 0:02:51.9]} 11. c3 {[%clk
0:03:05.5]} 11... O-O {[%clk 0:02:51.1]} 12. Nc2 {[%clk 0:03:05.3]} 12... Bg5
{[%clk 0:02:47.6]} 13. a4 {[%clk 0:03:05.3]} 13... bxa4 {[%clk 0:02:46.4]} 14.
Rxa4 {[%clk 0:03:06.2]} 14... a5 {[%clk 0:02:45.4]} 15. Bc4 {[%clk 0:03:05.2]}
15... Rb8 {[%clk 0:02:42.8]} 16. b3 {[%clk 0:03:00.1]} 16... Kh8 {[%clk
0:02:24.1]} 17. h4 {[%clk 0:02:53.3]} 17... Bh6 {[%clk 0:02:20.7]} 18. Qh5
{[%clk 0:02:46.8]} 18... Bd7 {[%clk 0:02:17.7]} 19. g4 {[%clk 0:02:33.4]} 19...
Bf4 {[%clk 0:01:57]} 20. g5 {[%clk 0:02:12.2]} 20... Nd4 {[%clk 0:01:23.5]} 21.
Nxd4 {[%clk 0:01:55.6]} 21... Bxa4 {[%clk 0:01:22.8]} 22. Nf5 {[%clk 0:01:48.2]}
22... Bxb3 {[%clk 0:01:16.8]} 23. Bxb3 {[%clk 0:01:18.5]} 23... Rxb3 {[%clk
0:01:16.5]} 24. Nxg7 {[%clk 0:01:16.9]} 24... Kxg7 {[%clk 0:00:17.3]} 25. Qh6+
{[%clk 0:01:13.6]} 25... Kg8 {[%clk 0:00:15.7]} 26. Ke2 {[%clk 0:00:29.6]} 26...
f5 {[%clk 0:00:13.6]} 27. Qe6+ {[%clk 0:00:22.4]} 27... Kh8 {[%clk 0:00:11.9]}
28. Nxf4 {[%clk 0:00:19.7]} 28... Rb2+ {[%clk 0:00:10.5]} 29. Ke3 {[%clk
0:00:07.5]} 29... exf4+ {[%clk 0:00:10]} 30. Kxf4 {[%clk 0:00:04.5]} 30... fxe4+
{[%clk 0:00:10]} 31. Kg4 {[%clk 0:00:05]} 31... Rbxf2 {[%clk 0:00:09.3]} 0-1

[Event "*** Titled Tuesday Blitz"]
[Site "Chess.com"]
[Date "2020.10.20"]
[Round "6"]
[White "indfraeng"]
[Black "pastouche06"]
[Result "0-1"]
[WhiteElo "2336"]
[BlackElo "2469"]
[TimeControl "180+1"]
[EndTime "11:08:39 PDT"]
[Termination "pastouche06 won by checkmate"]

1. d4 {[%clk 0:03:00.9]} 1... d5 {[%clk 0:02:57.9]} 2. c4 {[%clk 0:03:01.1]}
2... e6 {[%clk 0:02:58.3]} 3. g3 {[%clk 0:03:00.7]} 3... Nf6 {[%clk 0:02:57.5]}
4. Bg2 {[%clk 0:03:00.9]} 4... dxc4 {[%clk 0:02:57.5]} 5. Qa4+ {[%clk
0:02:59.4]} 5... Nbd7 {[%clk 0:02:52.8]} 6. Qxc4 {[%clk 0:02:58.6]} 6... a6
{[%clk 0:02:53.2]} 7. Be3 {[%clk 0:02:56.7]} 7... b5 {[%clk 0:02:47.2]} 8. Qc2
{[%clk 0:02:54.7]} 8... Rb8 {[%clk 0:02:47.5]} 9. Nh3 {[%clk 0:02:45.3]} 9...
Ng4 {[%clk 0:02:26]} 10. Bd2 {[%clk 0:02:39.4]} 10... Bd6 {[%clk 0:02:11.9]} 11.
f3 {[%clk 0:02:32.3]} 11... Ngf6 {[%clk 0:02:11.2]} 12. e4 {[%clk 0:02:32.6]}
12... e5 {[%clk 0:02:11.2]} 13. dxe5 {[%clk 0:02:10.5]} 13... Nxe5 {[%clk
0:02:11.4]} 14. Nf2 {[%clk 0:02:06.6]} 14... Nc4 {[%clk 0:02:05.5]} 15. f4
{[%clk 0:01:58.5]} 15... Bc5 {[%clk 0:01:56.6]} 16. Nd3 {[%clk 0:01:22.3]} 16...
Bb6 {[%clk 0:01:52.1]} 17. Nc3 {[%clk 0:01:16]} 17... Be3 {[%clk 0:01:31.4]} 18.
Nb1 {[%clk 0:00:56.3]} 18... Bxd2+ {[%clk 0:01:22.9]} 19. Nxd2 {[%clk
0:00:55.5]} 19... Ne3 {[%clk 0:01:23]} 20. Qc3 {[%clk 0:00:54.4]} 20... Nxg2+
{[%clk 0:01:19.3]} 21. Kf2 {[%clk 0:00:54.3]} 21... Bb7 {[%clk 0:01:05.8]} 22.
Kxg2 {[%clk 0:00:39.1]} 22... O-O {[%clk 0:00:49.7]} 23. Nc5 {[%clk 0:00:29.5]}
23... Ba8 {[%clk 0:00:49.4]} 24. Rhe1 {[%clk 0:00:28.3]} 24... Re8 {[%clk
0:00:49]} 25. Kg1 {[%clk 0:00:21.6]} 25... Qc8 {[%clk 0:00:45.6]} 26. Rad1
{[%clk 0:00:18.4]} 26... Qh3 {[%clk 0:00:45.4]} 27. Qe3 {[%clk 0:00:16.4]} 27...
Rbd8 {[%clk 0:00:40.3]} 28. Qf2 {[%clk 0:00:14]} 28... Qh5 {[%clk 0:00:31.3]}
29. Qe2 {[%clk 0:00:13.1]} 29... Qxc5+ {[%clk 0:00:30.7]} 30. Qf2 {[%clk
0:00:13.1]} 30... Qxf2+ {[%clk 0:00:26.4]} 31. Kxf2 {[%clk 0:00:14]} 31... Kf8
{[%clk 0:00:14.9]} 32. e5 {[%clk 0:00:13.4]} 32... Ng4+ {[%clk 0:00:12.9]} 33.
Kg1 {[%clk 0:00:13.4]} 33... Rd3 {[%clk 0:00:11.9]} 34. Nb3 {[%clk 0:00:07.6]}
34... Red8 {[%clk 0:00:12.1]} 35. Rxd3 {[%clk 0:00:07.4]} 35... Rxd3 {[%clk
0:00:13]} 36. Nc5 {[%clk 0:00:08.2]} 36... Rd2 {[%clk 0:00:13]} 37. h3 {[%clk
0:00:07.5]} 37... Rg2+ {[%clk 0:00:12.2]} 38. Kf1 {[%clk 0:00:07.3]} 38... Nh2#
{[%clk 0:00:12.1]} 0-1

[Event "*** Titled Tuesday Blitz"]
[Site "Chess.com"]
[Date "2020.10.20"]
[Round "6"]
[White "sopo-tereladze"]
[Black "Ind1anStar"]
[Result "1-0"]
[WhiteElo "2304"]
[BlackElo "2420"]
[TimeControl "180+1"]
[EndTime "11:08:39 PDT"]
[Termination "sopo-tereladze won by checkmate"]

1. d4 {[%clk 0:02:56.9]} 1... d5 {[%clk 0:03:00]} 2. Nf3 {[%clk 0:02:57]} 2...
Nf6 {[%clk 0:02:59.9]} 3. Bf4 {[%clk 0:02:57.5]} 3... e6 {[%clk 0:03:00.1]} 4.
e3 {[%clk 0:02:57.9]} 4... Bd6 {[%clk 0:03:00.4]} 5. Bd3 {[%clk 0:02:58.5]} 5...
O-O {[%clk 0:03:00.2]} 6. O-O {[%clk 0:02:58.3]} 6... c5 {[%clk 0:03:00.3]} 7.
c3 {[%clk 0:02:57.8]} 7... Qc7 {[%clk 0:03:00.4]} 8. Bxd6 {[%clk 0:02:53.2]}
8... Qxd6 {[%clk 0:03:01.3]} 9. Ne5 {[%clk 0:02:52.6]} 9... Nc6 {[%clk
0:02:59.2]} 10. f4 {[%clk 0:02:51.5]} 10... Ne7 {[%clk 0:02:59.2]} 11. Nd2
{[%clk 0:02:50]} 11... b6 {[%clk 0:02:57.5]} 12. Rf3 {[%clk 0:02:48.3]} 12...
Bb7 {[%clk 0:02:55.5]} 13. Rh3 {[%clk 0:02:47.2]} 13... Ne4 {[%clk 0:02:48.6]}
14. Qh5 {[%clk 0:02:29.4]} 14... h6 {[%clk 0:02:44.3]} 15. Ndf3 {[%clk 0:02:21]}
15... Nf5 {[%clk 0:02:36.8]} 16. Re1 {[%clk 0:02:08.8]} 16... Nf6 {[%clk
0:02:35.6]} 17. Nxf7 {[%clk 0:01:42.5]} 17... Rxf7 {[%clk 0:02:29.8]} 18. Qg6
{[%clk 0:01:42.7]} 18... Ne4 {[%clk 0:02:06.7]} 19. Ne5 {[%clk 0:01:30]} 19...
Rf6 {[%clk 0:01:58.7]} 20. Qg4 {[%clk 0:01:28.7]} 20... Raf8 {[%clk 0:01:49.7]}
21. Ng6 {[%clk 0:01:22.3]} 21... Re8 {[%clk 0:01:30]} 22. Rh5 {[%clk 0:01:14.2]}
22... cxd4 {[%clk 0:01:25.6]} 23. exd4 {[%clk 0:01:06.5]} 23... a6 {[%clk
0:00:54.3]} 24. Ne5 {[%clk 0:01:00.6]} 24... b5 {[%clk 0:00:42.6]} 25. Qf3
{[%clk 0:00:51.2]} 25... Ref8 {[%clk 0:00:20.9]} 26. Ng4 {[%clk 0:00:48.9]}
26... R6f7 {[%clk 0:00:18.2]} 27. Ne5 {[%clk 0:00:48.8]} 27... Rf6 {[%clk
0:00:18.3]} 28. Ng4 {[%clk 0:00:48.3]} 28... R6f7 {[%clk 0:00:13.6]} 29. Ne5
{[%clk 0:00:47.9]} 29... Rc7 {[%clk 0:00:13.9]} 30. g4 {[%clk 0:00:46.7]} 30...
Ne7 {[%clk 0:00:14.4]} 31. g5 {[%clk 0:00:37.6]} 31... Nxg5 {[%clk 0:00:10.2]}
32. Rxg5 {[%clk 0:00:36.8]} 32... hxg5 {[%clk 0:00:10.2]} 33. Qh5 {[%clk
0:00:37.2]} 33... Nf5 {[%clk 0:00:10.6]} 34. fxg5 {[%clk 0:00:35.7]} 34... Nh6
{[%clk 0:00:06.8]} 35. gxh6 {[%clk 0:00:23.2]} 35... gxh6 {[%clk 0:00:07.7]} 36.
Kh1 {[%clk 0:00:22.7]} 36... Rg7 {[%clk 0:00:08.2]} 37. Qxh6 {[%clk 0:00:21.1]}
37... Qe7 {[%clk 0:00:08.4]} 38. Ng6 {[%clk 0:00:20.3]} 38... Qf6 {[%clk
0:00:07.7]} 39. Qh8+ {[%clk 0:00:19.9]} 39... Kf7 {[%clk 0:00:08.3]} 40. Qxf8#
{[%clk 0:00:20.8]} 1-0

[Event "*** Titled Tuesday Blitz"]
[Site "Chess.com"]
[Date "2020.10.20"]
[Round "6"]
[White "Srisshhhtea"]
[Black "grandcoach"]
[Result "0-1"]
[WhiteElo "2242"]
[BlackElo "2148"]
[TimeControl "180+1"]
[EndTime "11:08:41 PDT"]
[Termination "grandcoach won on time"]

1. d4 {[%clk 0:02:59.3]} 1... Nf6 {[%clk 0:02:59.4]} 2. c4 {[%clk 0:02:55]} 2...
e6 {[%clk 0:02:58.8]} 3. Nf3 {[%clk 0:02:49.6]} 3... d5 {[%clk 0:02:58]} 4. g3
{[%clk 0:02:47.7]} 4... dxc4 {[%clk 0:02:53.7]} 5. Bg2 {[%clk 0:02:44.7]} 5...
Nc6 {[%clk 0:02:54.2]} 6. O-O {[%clk 0:02:44.1]} 6... Rb8 {[%clk 0:02:53.2]} 7.
a4 {[%clk 0:02:34.5]} 7... b6 {[%clk 0:02:40]} 8. Nbd2 {[%clk 0:02:33]} 8... Na5
{[%clk 0:02:31]} 9. Qc2 {[%clk 0:02:31.3]} 9... Bb7 {[%clk 0:02:16.8]} 10. e4
{[%clk 0:02:26.7]} 10... Bb4 {[%clk 0:02:07.7]} 11. e5 {[%clk 0:02:12.3]} 11...
Nd5 {[%clk 0:01:54.2]} 12. Nxc4 {[%clk 0:02:10.2]} 12... Nxc4 {[%clk 0:01:52.9]}
13. Qxc4 {[%clk 0:02:10]} 13... O-O {[%clk 0:01:50.7]} 14. Bg5 {[%clk
0:02:04.4]} 14... Qd7 {[%clk 0:01:44.2]} 15. Rfc1 {[%clk 0:02:01.5]} 15... c5
{[%clk 0:01:43.4]} 16. Bd2 {[%clk 0:01:22]} 16... Rbc8 {[%clk 0:01:32.5]} 17.
Qd3 {[%clk 0:01:14.6]} 17... c4 {[%clk 0:01:14]} 18. Qe2 {[%clk 0:00:54.4]}
18... a5 {[%clk 0:01:07.9]} 19. Ng5 {[%clk 0:00:42.1]} 19... h6 {[%clk
0:01:00.3]} 20. Ne4 {[%clk 0:00:38.7]} 20... Ba6 {[%clk 0:00:57.5]} 21. Qe1
{[%clk 0:00:15]} 21... Rc7 {[%clk 0:00:47.1]} 22. Bf1 {[%clk 0:00:11.2]} 22...
Rfc8 {[%clk 0:00:44.9]} 23. Rc2 {[%clk 0:00:10.4]} 23... Ne7 {[%clk 0:00:24.9]}
24. Qe3 {[%clk 0:00:09]} 24... Nf5 {[%clk 0:00:23.1]} 25. Qf4 {[%clk 0:00:06.7]}
25... Nxd4 {[%clk 0:00:22.7]} 26. Bxb4 {[%clk 0:00:03.1]} 26... Nxc2 {[%clk
0:00:21.3]} 27. Bd6 {[%clk 0:00:03.1]} 27... Nxa1 {[%clk 0:00:20.5]} 28. Nf6+
{[%clk 0:00:02.2]} 28... gxf6 {[%clk 0:00:19.6]} 29. exf6 {[%clk 0:00:03.1]}
29... Rc5 {[%clk 0:00:18.4]} 30. h4 {[%clk 0:00:02.1]} 30... Qe8 {[%clk
0:00:09.9]} 31. Qg4+ {[%clk 0:00:01.4]} 31... Kh8 {[%clk 0:00:08]} 0-1

[Event "*** Titled Tuesday Blitz"]
[Site "Chess.com"]
[Date "2020.10.20"]
[Round "6"]
[White "Msb2"]
[Black "Rud_Makarian"]
[Result "1-0"]
[WhiteElo "2926"]
[BlackElo "2751"]
[TimeControl "180+1"]
[EndTime "11:08:42 PDT"]
[Termination "Msb2 won by resignation"]

1. d4 {[%clk 0:03:00.9]} 1... Nf6 {[%clk 0:02:59.7]} 2. c4 {[%clk 0:03:00.9]}
2... g6 {[%clk 0:03:00.6]} 3. Nc3 {[%clk 0:03:01.1]} 3... Bg7 {[%clk 0:03:01.4]}
4. e4 {[%clk 0:03:01.3]} 4... d6 {[%clk 0:03:02]} 5. Be2 {[%clk 0:03:01.9]} 5...
O-O {[%clk 0:03:02.7]} 6. Be3 {[%clk 0:03:00.9]} 6... Nc6 {[%clk 0:03:02.6]} 7.
Nf3 {[%clk 0:02:59.6]} 7... Ng4 {[%clk 0:03:01.5]} 8. Bg5 {[%clk 0:03:00.2]}
8... f6 {[%clk 0:03:00.1]} 9. Bh4 {[%clk 0:02:54.6]} 9... e5 {[%clk 0:03:00.3]}
10. d5 {[%clk 0:02:51.6]} 10... Ne7 {[%clk 0:02:59.9]} 11. Nd2 {[%clk
0:02:52.1]} 11... f5 {[%clk 0:03:00.6]} 12. Bxg4 {[%clk 0:02:51.5]} 12... fxg4
{[%clk 0:03:01.5]} 13. Bg5 {[%clk 0:02:52.4]} 13... h6 {[%clk 0:03:02.1]} 14.
Be3 {[%clk 0:02:52]} 14... g5 {[%clk 0:03:02.9]} 15. O-O {[%clk 0:02:52.2]}
15... b6 {[%clk 0:03:03.1]} 16. b4 {[%clk 0:02:52.2]} 16... a5 {[%clk
0:03:03.6]} 17. a3 {[%clk 0:02:52.3]} 17... Ng6 {[%clk 0:03:02.8]} 18. c5 {[%clk
0:02:52.2]} 18... bxc5 {[%clk 0:03:03.3]} 19. bxc5 {[%clk 0:02:53.1]} 19... h5
{[%clk 0:03:03.3]} 20. Nb5 {[%clk 0:02:50.3]} 20... Nf4 {[%clk 0:02:30.1]} 21.
cxd6 {[%clk 0:02:43.9]} 21... cxd6 {[%clk 0:02:31]} 22. Nc4 {[%clk 0:02:44.1]}
22... Ra6 {[%clk 0:02:30.1]} 23. Rc1 {[%clk 0:02:41.1]} 23... h4 {[%clk
0:02:21.6]} 24. Ncxd6 {[%clk 0:02:40.5]} 24... Bd7 {[%clk 0:02:05.9]} 25. a4
{[%clk 0:02:39.2]} 25... Qf6 {[%clk 0:01:53.7]} 26. Nf5 {[%clk 0:02:07.8]} 26...
Bxf5 {[%clk 0:01:51.4]} 27. exf5 {[%clk 0:02:08.7]} 27... Qxf5 {[%clk
0:01:52.3]} 28. d6 {[%clk 0:01:24.1]} 28... Nxg2 {[%clk 0:01:22.9]} 29. Qd5+
{[%clk 0:01:21.4]} 29... Kh7 {[%clk 0:01:20.6]} 30. Qxg2 {[%clk 0:01:16.2]}
30... e4 {[%clk 0:01:14.3]} 31. Rc5 {[%clk 0:01:12.4]} 31... Be5 {[%clk
0:01:07.5]} 32. Rxe5 {[%clk 0:01:10.5]} 32... Qxe5 {[%clk 0:01:07.6]} 33. Qxg4
{[%clk 0:01:11.2]} 33... Raa8 {[%clk 0:01:02.9]} 34. d7 {[%clk 0:01:08.9]} 34...
Rad8 {[%clk 0:00:49.4]} 35. Rd1 {[%clk 0:01:08]} 35... Rf6 {[%clk 0:00:42.9]}
36. Bd4 {[%clk 0:00:57.6]} 36... Qe6 {[%clk 0:00:39.7]} 37. Qxe6 {[%clk
0:00:20.3]} 37... Rxe6 {[%clk 0:00:40.6]} 38. Be3 {[%clk 0:00:21.2]} 38... Kg6
{[%clk 0:00:38.3]} 39. Rd5 {[%clk 0:00:20.6]} 39... g4 {[%clk 0:00:38]} 40. Bg5
{[%clk 0:00:20]} 40... Rxd7 {[%clk 0:00:35.3]} 41. Rxd7 {[%clk 0:00:20]} 41...
Kxg5 {[%clk 0:00:36]} 42. Rd5+ {[%clk 0:00:19.5]} 42... Kf4 {[%clk 0:00:28.7]}
43. Nd4 {[%clk 0:00:19.8]} 43... e3 {[%clk 0:00:29.4]} 44. Nxe6+ {[%clk
0:00:19.6]} 44... Ke4 {[%clk 0:00:29.6]} 45. Rd4+ {[%clk 0:00:20]} 45... Ke5
{[%clk 0:00:28.4]} 46. fxe3 {[%clk 0:00:20.2]} 1-0

[Event "*** Titled Tuesday Blitz"]
[Site "Chess.com"]
[Date "2020.10.20"]
[Round "6"]
[White "Alexander_Moskalenko"]
[Black "bakki78"]
[Result "1-0"]
[WhiteElo "2897"]
[BlackElo "2732"]
[TimeControl "180+1"]
[EndTime "11:08:42 PDT"]
[Termination "Alexander_Moskalenko won on time"]

1. d4 {[%clk 0:03:00.9]} 1... d6 {[%clk 0:02:58]} 2. e4 {[%clk 0:03:00]} 2... g6
{[%clk 0:02:56.9]} 3. Nc3 {[%clk 0:02:58.8]} 3... Bg7 {[%clk 0:02:57.1]} 4. Nf3
{[%clk 0:02:59.7]} 4... a6 {[%clk 0:02:56.8]} 5. Be2 {[%clk 0:03:00.6]} 5... b5
{[%clk 0:02:56.8]} 6. O-O {[%clk 0:02:32.6]} 6... Bb7 {[%clk 0:02:56.7]} 7. Bf4
{[%clk 0:02:33.1]} 7... Nd7 {[%clk 0:02:48.2]} 8. e5 {[%clk 0:02:29.3]} 8... b4
{[%clk 0:02:44]} 9. Na4 {[%clk 0:02:25.4]} 9... Nh6 {[%clk 0:02:15.5]} 10. Qd2
{[%clk 0:02:21.5]} 10... Nf5 {[%clk 0:02:00.8]} 11. g4 {[%clk 0:02:21.7]} 11...
Nxd4 {[%clk 0:01:59.9]} 12. Qxd4 {[%clk 0:02:12.7]} 12... dxe5 {[%clk
0:01:58.2]} 13. Qxb4 {[%clk 0:02:12.8]} 13... Rb8 {[%clk 0:01:41.2]} 14. Qc3
{[%clk 0:02:11]} 14... O-O {[%clk 0:01:32.1]} 15. Bg3 {[%clk 0:02:10.4]} 15...
e4 {[%clk 0:01:16.5]} 16. Ne5 {[%clk 0:02:07.2]} 16... Qe8 {[%clk 0:01:05]} 17.
Nc5 {[%clk 0:02:02.7]} 17... Nxc5 {[%clk 0:00:46.6]} 18. Qxc5 {[%clk 0:02:03.6]}
18... Ba8 {[%clk 0:00:47.1]} 19. b3 {[%clk 0:02:02.2]} 19... f5 {[%clk
0:00:40.2]} 20. gxf5 {[%clk 0:01:58.6]} 20... gxf5 {[%clk 0:00:39.9]} 21. Bf4
{[%clk 0:01:55.8]} 21... Rb6 {[%clk 0:00:31.6]} 22. Kh1 {[%clk 0:01:54.9]} 22...
e3+ {[%clk 0:00:24.9]} 23. f3 {[%clk 0:01:54.5]} 23... Qh5 {[%clk 0:00:24.8]}
24. Rg1 {[%clk 0:01:51.5]} 24... Rg6 {[%clk 0:00:20.3]} 25. Nxg6 {[%clk
0:01:48.1]} 25... hxg6 {[%clk 0:00:18.8]} 26. Qxe3 {[%clk 0:01:45.4]} 26... Bxa1
{[%clk 0:00:16.7]} 27. Rxa1 {[%clk 0:01:46.3]} 27... e5 {[%clk 0:00:15.4]} 28.
Bxe5 {[%clk 0:01:40.6]} 28... Re8 {[%clk 0:00:15.6]} 29. Kg2 {[%clk 0:01:36]}
29... f4 {[%clk 0:00:15.1]} 30. Bc4+ {[%clk 0:01:30.3]} 30... Kh7 {[%clk
0:00:12.9]} 31. Qxf4 {[%clk 0:01:30.7]} 31... Qxe5 {[%clk 0:00:09.9]} 32. Qxe5
{[%clk 0:01:27.4]} 32... Rxe5 {[%clk 0:00:10.4]} 33. Rd1 {[%clk 0:01:25.8]}
33... Kh6 {[%clk 0:00:08.5]} 34. Rd8 {[%clk 0:01:15.8]} 34... Bc6 {[%clk
0:00:05.8]} 35. Rc8 {[%clk 0:01:15.6]} 35... Re7 {[%clk 0:00:05.9]} 36. Kf2
{[%clk 0:01:15]} 36... a5 {[%clk 0:00:05]} 37. Bd3 {[%clk 0:01:12.8]} 37... Be8
{[%clk 0:00:03.7]} 38. Ra8 {[%clk 0:01:11.2]} 38... Re5 {[%clk 0:00:03.6]} 39.
a4 {[%clk 0:01:09.5]} 39... Bf7 {[%clk 0:00:01.8]} 40. Ra7 {[%clk 0:01:06.6]}
40... Rc5 {[%clk 0:00:01.9]} 41. Ke3 {[%clk 0:01:07]} 41... g5 {[%clk
0:00:02.1]} 42. f4 {[%clk 0:01:05.9]} 42... gxf4+ {[%clk 0:00:01.8]} 43. Kxf4
{[%clk 0:01:06]} 43... Kg7 {[%clk 0:00:02.5]} 44. Ke3 {[%clk 0:01:05.7]} 44...
Kf6 {[%clk 0:00:03]} 45. Kd4 {[%clk 0:01:05.9]} 45... Rc6 {[%clk 0:00:03.4]} 46.
Rxa5 {[%clk 0:01:05.8]} 46... Ke7 {[%clk 0:00:02.7]} 47. Re5+ {[%clk 0:01:05.1]}
47... Kd8 {[%clk 0:00:02.5]} 48. h4 {[%clk 0:01:06]} 48... Rh6 {[%clk
0:00:02.4]} 49. Re4 {[%clk 0:01:05.4]} 49... Be6 {[%clk 0:00:01.8]} 50. Rf4
{[%clk 0:01:05.7]} 50... Bd7 {[%clk 0:00:01.9]} 51. a5 {[%clk 0:01:05.6]} 51...
c6 {[%clk 0:00:01.8]} 52. b4 {[%clk 0:01:06]} 52... Kc7 {[%clk 0:00:02.2]} 53.
c4 {[%clk 0:01:06.3]} 53... Rd6+ {[%clk 0:00:02.3]} 54. Kc3 {[%clk 0:01:06]}
54... Re6 {[%clk 0:00:01.8]} 55. b5 {[%clk 0:01:06.2]} 55... cxb5 {[%clk
0:00:01.7]} 56. cxb5 {[%clk 0:01:07.1]} 56... Re5 {[%clk 0:00:01.4]} 57. Kb4
{[%clk 0:01:06.7]} 1-0

[Event "*** Titled Tuesday Blitz"]
[Site "Chess.com"]
[Date "2020.10.20"]
[Round "6"]
[White "Berardino"]
[Black "AniJak"]
[Result "1-0"]
[WhiteElo "2588"]
[BlackElo "2402"]
[TimeControl "180+1"]
[EndTime "11:08:42 PDT"]
[Termination "Berardino won by resignation"]

1. e4 {[%clk 0:03:00.9]} 1... c6 {[%clk 0:02:59.4]} 2. d4 {[%clk 0:03:00]} 2...
d5 {[%clk 0:02:59.4]} 3. exd5 {[%clk 0:03:00.5]} 3... cxd5 {[%clk 0:02:59.2]} 4.
c4 {[%clk 0:03:01]} 4... Nf6 {[%clk 0:02:58]} 5. Nc3 {[%clk 0:03:01.1]} 5... e6
{[%clk 0:02:57.6]} 6. Nf3 {[%clk 0:02:54.8]} 6... Nc6 {[%clk 0:02:57.5]} 7. c5
{[%clk 0:02:48.6]} 7... Be7 {[%clk 0:02:57.1]} 8. Bb5 {[%clk 0:02:47.7]} 8...
O-O {[%clk 0:02:57]} 9. Bf4 {[%clk 0:02:47]} 9... Bd7 {[%clk 0:02:47.5]} 10. O-O
{[%clk 0:02:45.6]} 10... b6 {[%clk 0:02:44.9]} 11. Bxc6 {[%clk 0:02:42]} 11...
Bxc6 {[%clk 0:02:44.7]} 12. Ne5 {[%clk 0:02:42.5]} 12... Rc8 {[%clk 0:02:39.3]}
13. b4 {[%clk 0:02:41.7]} 13... bxc5 {[%clk 0:02:33.7]} 14. bxc5 {[%clk
0:02:40]} 14... Ba8 {[%clk 0:02:27.9]} 15. Qa4 {[%clk 0:02:34.8]} 15... Ne4
{[%clk 0:01:49.6]} 16. Rac1 {[%clk 0:02:17.7]} 16... f6 {[%clk 0:01:38.6]} 17.
Nf3 {[%clk 0:02:08.6]} 17... Bc6 {[%clk 0:01:25.7]} 18. Qa6 {[%clk 0:01:58.4]}
18... Qd7 {[%clk 0:01:22.5]} 19. Rfd1 {[%clk 0:01:52.8]} 19... Nxc3 {[%clk
0:01:17.9]} 20. Rxc3 {[%clk 0:01:51.4]} 20... Bb5 {[%clk 0:01:17.8]} 21. Qa5
{[%clk 0:01:44.1]} 21... Bd8 {[%clk 0:01:16]} 22. Qa3 {[%clk 0:01:38.9]} 22...
Bc7 {[%clk 0:01:09.8]} 23. c6 {[%clk 0:01:07.5]} 23... Qd8 {[%clk 0:00:46.5]}
24. Bxc7 {[%clk 0:01:05.2]} 24... Rxc7 {[%clk 0:00:44.7]} 25. Rdc1 {[%clk
0:01:01.2]} 25... e5 {[%clk 0:00:34.1]} 26. dxe5 {[%clk 0:00:59]} 26... fxe5
{[%clk 0:00:34.3]} 27. Nxe5 {[%clk 0:00:58.3]} 27... Qf6 {[%clk 0:00:23.4]} 28.
Rf3 {[%clk 0:00:55.2]} 28... Qd8 {[%clk 0:00:23]} 29. Rxf8+ {[%clk 0:00:29.3]}
29... Qxf8 {[%clk 0:00:23.9]} 30. Qc3 {[%clk 0:00:23.1]} 30... Qe8 {[%clk
0:00:22.5]} 31. h3 {[%clk 0:00:22]} 31... h6 {[%clk 0:00:19.4]} 32. Qd4 {[%clk
0:00:22.1]} 32... a6 {[%clk 0:00:18.9]} 33. Qxd5+ {[%clk 0:00:21.9]} 33... Kh8
{[%clk 0:00:18.3]} 34. Qe4 {[%clk 0:00:19.5]} 34... Bxc6 {[%clk 0:00:16.3]} 35.
Qf4 {[%clk 0:00:12.1]} 35... Qe6 {[%clk 0:00:11.9]} 36. Ng6+ {[%clk 0:00:10.7]}
36... Kg8 {[%clk 0:00:11.2]} 37. Qxc7 {[%clk 0:00:10.2]} 37... Qxg6 {[%clk
0:00:10.4]} 38. Qxc6 {[%clk 0:00:10.4]} 1-0

[Event "*** Titled Tuesday Blitz"]
[Site "Chess.com"]
[Date "2020.10.20"]
[Round "6"]
[White "Jungle_Jaguar"]
[Black "Sueetin"]
[Result "1-0"]
[WhiteElo "2592"]
[BlackElo "2355"]
[TimeControl "180+1"]
[EndTime "11:08:44 PDT"]
[Termination "Jungle_Jaguar won on time"]

1. e4 {[%clk 0:03:00.9]} 1... e6 {[%clk 0:03:00.1]} 2. d4 {[%clk 0:03:00.7]}
2... d5 {[%clk 0:03:00.7]} 3. Nc3 {[%clk 0:03:01.1]} 3... Nf6 {[%clk 0:03:00.9]}
4. Bg5 {[%clk 0:02:59.9]} 4... dxe4 {[%clk 0:03:00.6]} 5. Nxe4 {[%clk
0:02:59.8]} 5... Be7 {[%clk 0:03:00.9]} 6. Bxf6 {[%clk 0:02:59.9]} 6... gxf6
{[%clk 0:03:00.9]} 7. Nf3 {[%clk 0:03:00.5]} 7... f5 {[%clk 0:03:00.8]} 8. Nc3
{[%clk 0:03:00.4]} 8... Bf6 {[%clk 0:02:59.3]} 9. a4 {[%clk 0:02:58.9]} 9... O-O
{[%clk 0:02:44]} 10. Qd2 {[%clk 0:02:53.1]} 10... c5 {[%clk 0:02:41.1]} 11. d5
{[%clk 0:02:50.6]} 11... e5 {[%clk 0:02:37.8]} 12. h4 {[%clk 0:02:37.1]} 12...
Nd7 {[%clk 0:02:34.9]} 13. g3 {[%clk 0:02:34.2]} 13... e4 {[%clk 0:02:23.1]} 14.
Ng5 {[%clk 0:02:34.2]} 14... Ne5 {[%clk 0:02:23]} 15. Be2 {[%clk 0:02:34.3]}
15... b6 {[%clk 0:02:09.5]} 16. O-O-O {[%clk 0:02:34.1]} 16... a6 {[%clk
0:02:03.3]} 17. d6 {[%clk 0:02:16.6]} 17... Be6 {[%clk 0:01:44.7]} 18. Nd5
{[%clk 0:02:10.9]} 18... Bg7 {[%clk 0:01:24.8]} 19. Nc7 {[%clk 0:01:50.7]} 19...
b5 {[%clk 0:00:59.9]} 20. a5 {[%clk 0:01:41]} 20... Bc4 {[%clk 0:00:47.1]} 21.
Nxa8 {[%clk 0:01:38.4]} 21... Bxe2 {[%clk 0:00:45.3]} 22. Nb6 {[%clk 0:01:11.8]}
22... Bxd1 {[%clk 0:00:36.6]} 23. Rxd1 {[%clk 0:01:12.7]} 23... h6 {[%clk
0:00:17.2]} 24. Nh3 {[%clk 0:01:12]} 24... Nc4 {[%clk 0:00:17.7]} 25. Nxc4
{[%clk 0:01:11.9]} 25... bxc4 {[%clk 0:00:18.6]} 26. d7 {[%clk 0:01:12.4]} 26...
c3 {[%clk 0:00:16.9]} 27. Qd5 {[%clk 0:00:23.9]} 27... Qxa5 {[%clk 0:00:15.8]}
28. Kb1 {[%clk 0:00:24.1]} 28... cxb2 {[%clk 0:00:06.8]} 29. Qa2 {[%clk
0:00:24.4]} 29... Qb6 {[%clk 0:00:05.5]} 30. Nf4 {[%clk 0:00:20.8]} 30... c4
{[%clk 0:00:05.5]} 31. Nd5 {[%clk 0:00:18.3]} 31... Qc5 {[%clk 0:00:02.3]} 32.
Qxa6 {[%clk 0:00:09.6]} 32... c3 {[%clk 0:00:01.3]} 33. Nf4 {[%clk 0:00:05.1]}
1-0